Cogmind - Beta 15 @@@ ROGUE MODE // 2025.07.10 @ 00:57:09 // Winter2019/RPGLIKE Player: Fellun Result: Destroyed by H-61 Shepherd with Heavy Assault Cannon Performance ------------- Evolutions (4) 2000 Regions Visited (5) 1000 Robots Destroyed (30) 150 Value Destroyed (1077) 1077 Prototype IDs (18) 360 Alien Tech Used (0) 0 Bonus (800) 800 TOTAL SCORE: 5387 Bonus ------- Registered with UFD 300 Met Optimus in HQ 500 Cogmind --------- Core Integrity 0/850 Matter 154/300 Energy 370/370 System Corruption 0% Temperature Hot (218) Movement Hovering (220) Ox2 Location -6/Factory Parts ------- > --- POWER (2) -------- Improved Deuterium Engine Meta Core > --- PROPULSION (2+1) - Combat Airjet > --- UTILITY (5+1) ---- Scrap Suit Improved Heat Sink Hardened Light Armor Plating Improved System Shield (+) Thief Drone Bay (1/3) > --- WEAPON (3+1) ----- Makeshift Laser Battle Rifle (+) Barrage Gun Battle Cannon > --- INVENTORY (1) ---- Botcube Peak State ------------ > --- POWER ------------ Improved Deuterium Engine Meta Core > --- PROPULSION ------- Combat Airjet > --- UTILITY ---------- Scrap Suit Improved Heat Sink Hardened Light Armor Plating Improved System Shield Thief Drone Bay > --- WEAPON ----------- Makeshift Laser Battle Rifle Barrage Gun Battle Cannon > --- INVENTORY -------- Botcube [Rating: 58] Favorites ----------- Power Light Nuclear Core Engine Ion Engine Power Core Light Nuclear Core Propulsion Combat Airjet Wheel Wheel Hover Unit Combat Airjet Utility Improved Heat Sink Device Improved Heat Sink Hackware Improved System Shield Protection Hardened Light Armor Plating Weapon Battle Cannon Energy Gun Makeshift Laser Ballistic Gun Battle Rifle Ballistic Cannon Battle Cannon Build | -11 -10 -10 -10 -9 -6 ------- Run | Yrd Mat Min Sub Scr Fac Slots Evolved 8 | 4 . 1 . 2 1 Power 1 | 1 . . . . . Propulsion 1 | 1 . . . . . Utility 4 | 1 . . . 2 1 Weapon 2 | 1 . 1 . . . Parts Attached 24 | 7 1 5 7 2 2 Power 5 | 2 1 . 1 . 1 Engine 3 | 2 . . . . 1 Core 2 | . 1 . 1 . . Reactor . | . . . . . . Propulsion 3 | 2 . 1 . . . Treads . | . . . . . . Leg . | . . . . . . Wheel 2 | 2 . . . . . Hover 1 | . . 1 . . . Flight . | . . . . . . Utility 6 | . . 3 . 2 1 Device 4 | . . 3 . 1 . Storage . | . . . . . . Processor . | . . . . . . Hackware 1 | . . . . 1 . Protection 1 | . . . . . 1 Artifact . | . . . . . . Weapon 10 | 3 . 1 6 . . Energy Gun 5 | 2 . 1 2 . . Energy Cannon . | . . . . . . Ballistic Gun 3 | 1 . . 2 . . Ballistic Cannon 2 | . . . 2 . . Launcher . | . . . . . . Special Weapon . | . . . . . . Impact Weapon . | . . . . . . Slashing Weapon . | . . . . . . Piercing Weapon . | . . . . . . Special Melee Weapon . | . . . . . . Unidentified Prototypes 1 | . . 1 . . . Parts Lost . | . . . . . . Power . | . . . . . . Propulsion . | . . . . . . Utility . | . . . . . . Weapon . | . . . . . . Highest Loss Streak . | . . . . . . To Critical Strikes . | . . . . . . Average Backups . | . . . . . . Power . | . . . . . . Propulsion . | . . . . . . Utility . | . . . . . . Weapon . | . . . . . . Tool/Special . | . . . . . . Unused Backups 1 | . . . . 1 . Power . | . . . . . . Propulsion . | . . . . . . Utility . | . . . . . . Weapon 1 | . . . . 1 . Tool/Special . | . . . . . . Average Slot Usage (%) 79 | . 75 84 80 77 79 Engine 4 | . 18 11 5 . 2 Core 13 | . 6 11 13 15 10 Wheel 1 | . 25 5 . . . Hover 8 | . . 8 9 7 6 Device 17 | . . 16 19 16 20 Hackware 1 | . . . . 3 6 Energy Gun 11 | . 12 21 14 7 6 Ballistic Gun 13 | . 12 11 12 15 13 Ballistic Cannon 5 | . . . 4 7 6 Peak Build Rating 58 | 6 8 23 42 55 58 Average Rating 35 | 4 7 17 30 44 57 On Entrance 22 | . 6 8 23 42 55 Naked Turns . | . . . . . . Heaviest Build 40 | 13 12 20 28 30 40 Greatest Support 26 | 26 26 26 17 17 17 Greatest Overweight (x) 2 | . . 1 1 1 2 Average Overweight (x) . | . . . 1 1 1 Largest Inventory Capacity 1 | . . 1 1 1 1 Average Capacity . | . . . 1 1 1 Most Carried 1 | . . . 1 1 1 Average Carried . | . . . . . 1 Final Capacity 1 | . . 1 1 1 1 Final Carried 1 | . . . 1 1 1 Class Distribution -------------------- 48% | Scavenger-Gunner 23% | Hacker-Gunner 21% | Derelict-Gunner 3% | Mutant Dominant Class ---------------- Mutant | -10/Materials Scavenger-Gunner | -10/Mines Scavenger-Gunner | -10/Subcaves Derelict-Gunner | -9/Scraptown Hacker-Gunner | -6/Factory Resources | -11 -10 -10 -10 -9 -6 ----------- Run | Yrd Mat Min Sub Scr Fac Matter Collected 802 | 170 125 132 327 . 48 Remotely . | . . . . . . Salvage Created 973 | . 207 212 533 . 21 Parts 54 | . 3 20 25 . 6 Haulers Intercepted . | . . . . . . Recyclers Shooed . | . . . . . . Parts Field Recycled . | . . . . . . Retrieved Matter . | . . . . . . Parts Self-Destructed 10 | . . . 10 . . Prevented . | . . . . . . Kills | -11 -10 -10 -10 -9 -6 ------- Run | Yrd Mat Min Sub Scr Fac Combat Hostiles Destroyed 28 | . 3 9 14 . 2 Guns 24 | . 3 9 11 . 1 Cannons 4 | . . . 3 . 1 Classes Destroyed 7 | . 1 2 3 . 1 Turret 1 | . . . 1 . . Watcher 1 | . . . . . 1 Swarmer 5 | . . 3 2 . . Grunt 8 | . 3 4 . . 1 Sentry 2 | . . . 1 . 1 Demolisher 2 | . . 2 . . . Subdweller 11 | . . . 11 . . Best Kill Streak 3 | . 2 3 3 . 1 Combat Bots Only 3 | . 2 3 3 . 1 Max Kills in Single Turn 1 | . 1 1 1 . 1 Gunslinging . | . . . . . . Exploded . | . . . . . . Melee . | . . . . . . Uniques/NPCs Destroyed . | . . . . . . Combat | -11 -10 -10 -10 -9 -6 -------- Run | Yrd Mat Min Sub Scr Fac Hostile Shots Fired 146 | . 21 38 46 . 41 Missed 43 | . 4 16 15 . 8 Hits 103 | . 17 22 31 . 33 Projectile 103 | . 17 22 31 . 33 AOE 5 | . . 3 2 . . Critical Strikes 4 | . . 2 . . 2 Damage Taken 1991 | . 214 319 718 . 740 Core 1588 | . 170 266 579 . 573 Absorbed by Shields . | . . . . . . Redirected to Core 1285 | . 130 172 489 . 494 Core Remaining (%) 66 | 100 . . . 32 . Volleys Fired 115 | . 16 24 63 . 12 Largest 4 | . 2 3 4 . 4 Hottest 146 | . 60 125 146 . 136 Shots Fired 344 | . 31 65 200 . 48 Gun 307 | . 31 65 175 . 36 Cannon 37 | . . . 25 . 12 Launcher . | . . . . . . Special . | . . . . . . Kinetic 177 | . 16 24 101 . 36 Thermal 167 | . 15 41 99 . 12 Explosive . | . . . . . . Electromagnetic . | . . . . . . Robot Hit Streak 12 | . 5 8 12 . 5 Robot Miss Streak 6 | . 6 5 4 . 5 Penetration Max . | . . . . . . Secondary Targets 4 | . . 2 2 . . Max Gunslinging Chain 1 | . . 1 1 . . Shots Hit Robots 163 | . 16 35 85 . 27 Core Hits 68 | . 8 18 31 . 11 Critical Kills . | . . . . . . Critical Parts Destroyed . | . . . . . . Critical Strikes 2 | . . . 1 . 1 Burn 2 | . . . 1 . 1 Melee Attacks . | . . . . . . Impact . | . . . . . . Slashing . | . . . . . . Piercing . | . . . . . . Sneak Attacks . | . . . . . . Combat Hostiles . | . . . . . . Follow-up Attacks . | . . . . . . Damage Inflicted 2307 | . 157 403 1229 . 518 Guns 1899 | . 157 403 999 . 340 Cannons 408 | . . . 230 . 178 Explosions . | . . . . . . Melee . | . . . . . . Ramming . | . . . . . . Kinetic 1192 | . 71 85 604 . 432 Thermal 1115 | . 86 318 625 . 86 Explosive . | . . . . . . Electromagnetic . | . . . . . . Impact . | . . . . . . Slashing . | . . . . . . Piercing . | . . . . . . Highest Corruption . | . . . . . . Average Corruption . | . . . . . . Corruption Purged . | . . . . . . Corruption Blocked . | . . . . . . Overload Shots . | . . . . . . Overflow Damage 4 | . . . 4 . . Projectiles 4 | . . . 4 . . Explosions . | . . . . . . Melee . | . . . . . . Knockbacks 5 | . . . 2 . 3 Impact . | . . . . . . Kinetic 5 | . . . 2 . 3 Secondary . | . . . . . . Self-Inflicted Damage . | . . . . . . Shots . | . . . . . . Rammed . | . . . . . . Targets Rammed . | . . . . . . Kicked . | . . . . . . Crushed . | . . . . . . Highest Temperature 463 | . 269 463 24 . 424 Average Temperature 133 | . 103 172 8 . 161 Received Heat Transfer 531 | . 114 120 141 . 156 Effects 6 | . . 3 . . 3 Shutdowns 3 | . . 1 . . 2 Energy Bleed 1 | . . 1 . . . Matter Decay 1 | . . 1 . . . Damage (minor) 1 | . . . . . 1 Siege Activations . | . . . . . . Martial Activations . | . . . . . . Shielding Activations . | . . . . . . Robots Disrupted . | . . . . . . Combat Hostiles . | . . . . . . Robots Corrupted . | . . . . . . Combat Hostiles . | . . . . . . Parts Fried . | . . . . . . Impact Corruptions . | . . . . . . Robots Melted . | . . . . . . Combat Hostiles . | . . . . . . Parts Melted 1 | . . . 1 . . Heat Transferred 2520 | . 200 734 1327 . 259 Parts Sabotaged . | . . . . . . Parts Stolen . | . . . . . . Parts Stripped . | . . . . . . Power Chain Reactions . | . . . . . . Alert | -11 -10 -10 -10 -9 -6 ------- Run | Yrd Mat Min Sub Scr Fac Maximum Alert Level . | . . . . . . Low Security (%) 100 | 100 100 100 . . 100 Level 1 . | . . . . . . Level 2 . | . . . . . . Level 3 . | . . . . . . Level 4 . | . . . . . . Level 5 . | . . . . . . High Security . | . . . . . . Max Security . | . . . . . . Peak Influence 101 | . 55 101 . . 30 Initial 21 | . . 21 . . . Average 18 | . 23 37 . . 2 Influence Increases 480 | . 105 220 80 . 75 Destroy 0b10 Robot/C 360 | . 60 180 80 . 40 Destroy 0b10 Robot/NC 5 | . . . . . 5 Destroy Leader 62 | . 10 40 . . 12 Successful Hack 23 | . 5 . . . 18 Lose Combat Pursuer 30 | . 30 . . . . Influence Decreases 466 | . 50 275 72 8 61 Entered New Map 42 | . . 34 . 8 . Time Decay 420 | . 50 241 72 . 57 Purge Threat 4 | . . . . . 4 Squads Dispatched 3 | . 1 . . . 2 Investigation . | . . . . . . Extermination 1 | . . . . . 1 Reinforcement 2 | . 1 . . . 1 Assault . | . . . . . . Garrison . | . . . . . . Intercept . | . . . . . . Searches Triggered . | . . . . . . Construction Impeded . | . . . . . . Haulers Reinforced . | . . . . . . Active Scanning Responses . | . . . . . . Cargo Convoy Interrupts . | . . . . . . Stealth | -11 -10 -10 -10 -9 -6 --------- Run | Yrd Mat Min Sub Scr Fac Distress Signals 1 | . 1 . . . . Communications Jammed . | . . . . . . Distress Signals . | . . . . . . Times Spotted 55 | . 10 23 16 . 6 Peak Tracking Total 15 | . 4 15 4 . 3 Tactical Retreats 2 | . 2 . . . . Traps | -11 -10 -10 -10 -9 -6 ------- Run | Yrd Mat Min Sub Scr Fac Traps Triggered 1 | . . . 1 . . Indirectly . | . . . . . . Trap Hack Attempts . | . . . . . . Triggered . | . . . . . . Disarmed . | . . . . . . Reprogrammed . | . . . . . . Reused . | . . . . . . Traps Extracted . | . . . . . . Installed . | . . . . . . Triggered . | . . . . . . Machines | -11 -10 -10 -10 -9 -6 ---------- Run | Yrd Mat Min Sub Scr Fac Machines Disabled 1 | . . . 1 . . Max in Single Turn 1 | . . . 1 . . Machines Repaired . | . . . . . . Machines Dismantled . | . . . . . . Machines Sabotaged . | . . . . . . Overloaded Fab Kills . | . . . . . . Hacking | -11 -10 -10 -10 -9 -6 --------- Run | Yrd Mat Min Sub Scr Fac Machines Accessed 14 | . 2 1 1 6 4 Terminals 5 | . 2 . . . 3 Fabricators . | . . . . . . Repair Stations . | . . . . . . Recycling Units . | . . . . . . Scanalyzers . | . . . . . . Garrison Access 1 | . . . . . 1 Total Hacks 75 | . 6 1 9 43 16 Successful 59 | . 1 1 9 43 5 Failed 16 | . 5 . . . 11 Catastrophic 5 | . 2 . . . 3 Database Lockouts . | . . . . . . Manual 15 | . 3 . . . 12 Terminals 18 | . 6 . . . 12 Fabricators . | . . . . . . Repair Stations . | . . . . . . Recycling Units . | . . . . . . Scanalyzers . | . . . . . . Garrison Access 4 | . . . . . 4 Terminal Hacks 57 | . . 1 9 43 4 Record 50 | . . . 8 42 . Open Door 1 | . . 1 . . . Level Access Points 1 | . . . . . 1 Branch Access Points 1 | . . . . . 1 Terminal Index 1 | . . . . . 1 Unreport Threat 1 | . . . . . 1 Proto ID Catalog 2 | . . . 1 1 . Fabricator Hacks . | . . . . . . Repair Station Hacks . | . . . . . . Recycling Unit Hacks . | . . . . . . Scanalyzer . | . . . . . . Garrison Access Hacks . | . . . . . . Unauthorized Hacks 2 | . 1 . . . 1 Terminals 2 | . 1 . . . 1 Botnet 2 | . 1 . . . 1 Fabricators . | . . . . . . Repair Stations . | . . . . . . Recycling Units . | . . . . . . Scanalyzers . | . . . . . . Garrison Access . | . . . . . . Data Cores Recovered . | . . . . . . Used . | . . . . . . Hacking Detections 5 | . 2 . . . 3 Full Trace Events . | . . . . . . Feedback Events . | . . . . . . Feedback Blocked . | . . . . . . Robot Schematics Acquired . | . . . . . . Robots Built . | . . . . . . Authchips . | . . . . . . Time . | . . . . . . Total Robot Build Rating . | . . . . . . Part Schematics Acquired . | . . . . . . Parts Built . | . . . . . . Authchips . | . . . . . . Time . | . . . . . . Total Part Build Rating . | . . . . . . Parts Repaired . | . . . . . . Time . | . . . . . . Parts Recycled . | . . . . . . Recycled Matter . | . . . . . . Retrieved Matter . | . . . . . . Retrieved Components . | . . . . . . Parts Scanalyzed . | . . . . . . Part Schematics Acquired . | . . . . . . Parts Damaged . | . . . . . . Bothacking | -11 -10 -10 -10 -9 -6 ------------ Run | Yrd Mat Min Sub Scr Fac Used RIF Installer . | . . . . . . Robots Hacked . | . . . . . . Non-combat . | . . . . . . Combat . | . . . . . . Robot Hacks Applied . | . . . . . . Relay Couplers Released . | . . . . . . Fabnet Peak Effective % . | . . . . . . Robots Rewired . | . . . . . . Allies Hacked . | . . . . . . Hacks Repelled . | . . . . . . Allies | -11 -10 -10 -10 -9 -6 -------- Run | Yrd Mat Min Sub Scr Fac Total Allies 1 | . . . . 1 . Largest Group . | . . . . . . Highest-Rated Group . | . . . . . . Highest-Rated Ally . | . . . . . . Total Orders . | . . . . . . Ally Attacks 5 | . . . . . 5 Total Damage 11 | . . . . . 11 Kills . | . . . . . . Allies Corrupted . | . . . . . . Allies Melted . | . . . . . . Intel | -11 -10 -10 -10 -9 -6 ------- Run | Yrd Mat Min Sub Scr Fac Active Infowar (turns) . | . . . . . . Robot Analysis Total . | . . . . . . Derelict Logs Recovered 3 | . . 1 2 . . Drone Launches 3 | . . . . . 3 Drone Recoveries 1 | . . . . . 1 Exploration | -11 -10 -10 -10 -9 -6 ------------- Run | Yrd Mat Min Sub Scr Fac Turns Passed 6789 | 41 193 673 2997 2045 840 Spaces Moved 4136 | 35 131 456 1819 1358 337 Core 1 | 1 . . . . . Treads . | . . . . . . Legs . | . . . . . . Wheels 220 | 34 131 55 . . . Hover 3915 | . . 401 1819 1358 337 Flight . | . . . . . . Fastest Speed 50 | 50 90 80 150 150 150 Average Speed 148 | 88 90 105 150 150 218 Slowest Speed 220 | 90 90 150 150 150 220 Overloaded Moves . | . . . . . . Propulsion Burnouts . | . . . . . . Robots Hopped . | . . . . . . Potential Cave-ins . | . . . . . . Cave-ins Triggered . | . . . . . . Exploration Rate (%) 53 | 3 36 90 95 89 9 Regions Visited 5 Branch Regions 3 Pre-discovered Areas 2 | . . . 1 1 . Known Exits Taken . | . . . . . . Unknown Exits Taken 5 | 1 1 1 1 1 . Scrap Searched 11 | . . 1 9 1 . Spaces Dug . | . . . . . . Terrain Destroyed 1 | . . . 1 . . Melee . | . . . . . . Projectile 1 | . . . 1 . . AOE . | . . . . . . Terrain Rammed . | . . . . . . Walls Destroyed . | . . . . . . Machines Disabled . | . . . . . . Actions | -11 -10 -10 -10 -9 -6 --------- Run | Yrd Mat Min Sub Scr Fac Total 4552 | 41 177 600 1956 1366 412 Wait 238 | . 30 103 45 5 55 Move 4131 | 34 130 455 1818 1357 337 Hop . | . . . . . . Pick Up 2 | . . . 1 1 . Fast Attach 15 | 6 . 4 1 2 2 Attach . | . . . . . . Detach . | . . . . . . Swap 10 | 1 1 1 6 . 1 Drop 8 | . . 2 4 1 1 Fire 115 | . 16 24 63 . 12 Melee . | . . . . . . Ram . | . . . . . . Kick . | . . . . . . Crush . | . . . . . . Escape Stasis . | . . . . . . Rewire . | . . . . . . Trap . | . . . . . . Miscellaneous 33 | . . 11 18 . 4 Route ------- -11/Scrapyard -10/Materials -10/Mines (discovered 2 exits: [*Mat] / *Sub) -10/Subcaves (discovered 4 exits: *Mat x2 / [*Rec] / *Scr) -9/Scraptown (discovered 2 exits: *Fac x2) -6/Factory (discovered 6 exits: Fac x4 / *Low x2) History --------- Turn | Location | Event 1 | -11/Scrapyard | Upgraded with Power slot (x1) 1 | -11/Scrapyard | Upgraded with Propulsion slot (x1) 1 | -11/Scrapyard | Upgraded with Utility slot (x1) 1 | -11/Scrapyard | Upgraded with Weapon slot (x1) 25 | -11/Scrapyard | Discovered new exit (range 14) 42 | -11/Scrapyard | Entered Materials 218 | -10/Materials | Discovered new exit (range 6) 235 | -10/Materials | Entered Mines 255 | -10/Mines | Upgraded with Weapon slot (x1) 277 | -10/Mines | Assembled infested the area 282 | -10/Mines | Assisted by a Guerilla fighting off Assembled 367 | -10/Mines | Core integrity fell below 50% 433 | -10/Mines | Reached level 2 505 | -10/Mines | Discovered new exit (range 6) 620 | -10/Mines | Learned Materials trap positions 636 | -10/Mines | Found the Drone Emporium 646 | -10/Mines | Found Prototype Device 646 | -10/Mines | Identified Thief Drone Bay 686 | -10/Mines | Build established: Scavenger-Gunner 896 | -10/Mines | Discovered new exit (range 8) 908 | -10/Mines | Entered Subcaves 909 | -10/Subcaves | Approached by a straggling Scientist 948 | -10/Subcaves | Identified exit to Materials 1257 | -10/Subcaves | Disturbed a concealed Subdweller 1416 | -10/Subcaves | A swath of the cavern ceiling suddenly collapsed 1699 | -10/Subcaves | Shifting Twisted Machinery released Flamer 1788 | -10/Subcaves | Shifting Twisted Machinery released Flamer 2366 | -10/Subcaves | Visited 4L-MR0's lab 2419 | -10/Subcaves | Found Meta Core 2420 | -10/Subcaves | Attached Meta Core, gained temporary slots: Propulsion, Utility, Weapon 2750 | -10/Subcaves | Core integrity fell below 20% 2763 | -10/Subcaves | Reached level 3 2788 | -10/Subcaves | Discovered new exit (range 15) 3556 | -10/Subcaves | Shifting Twisted Machinery released Slug Cannon 3731 | -10/Subcaves | Discovered exit to Materials (range 13) 3854 | -10/Subcaves | Learned location of Zion (-6) 3854 | -10/Subcaves | Met a Zionite searching for "candidates" 3863 | -10/Subcaves | Scientist uncovered a shortcut to Scraptown 3905 | -10/Subcaves | Entered Scraptown 3993 | -9/Scraptown | Build established: Derelict-Gunner 4055 | -9/Scraptown | Learned location of Extension (-5) 4057 | -9/Scraptown | Heard Great Nut preacher, LISTEN AND RECITE! 4336 | -9/Scraptown | Discovered new exit (range 5) 4451 | -9/Scraptown | Visited Red Mages 4535 | -9/Scraptown | Visited Shadow of the Wyrm 4565 | -9/Scraptown | Visited TADAMA 4598 | -9/Scraptown | Visited Cave Peace 4874 | -9/Scraptown | Visited Awakened 4912 | -9/Scraptown | Visited UFD Registry 4912 | -9/Scraptown | Registered with UFD as "Bulletrider" 4931 | -9/Scraptown | Visited SPCMW 5048 | -9/Scraptown | Visited Curators Association 5138 | -9/Scraptown | Visited Junk Repository 5207 | -9/Scraptown | Visited Science Guys 5267 | -9/Scraptown | Visited Chapter 10 5377 | -9/Scraptown | Visited Junk Cannon Lab 5431 | -9/Scraptown | Visited Research Penetration Think Tank 5467 | -9/Scraptown | Build established: Hacker-Gunner 5467 | -9/Scraptown | Visited Scrapoid Pod Storage 5489 | -9/Scraptown | Visited Botcube Research 5501 | -9/Scraptown | Botcube activated 5505 | -9/Scraptown | Found Botcube 5788 | -9/Scraptown | Met Optimus 5788 | -9/Scraptown | Accepted into 0bPrime 5890 | -9/Scraptown | Discovered new exit (range 3) 5911 | -9/Scraptown | Upgraded with Utility slot (x2) 5920 | -9/Scraptown | Found Scrap Suit 5950 | -9/Scraptown | Entered Factory 5951 | -6/Factory | Core integrity fell below 50% 5952 | -6/Factory | Reached level 4 5959 | -6/Factory | Upgraded with Utility slot (x1) 6200 | -6/Factory | Discovered new exit (range 12) 6287 | -6/Factory | Spotted B-75 Beast 6403 | -6/Factory | Identified exit to Factory 6421 | -6/Factory | Identified exit to Lower Caves 6750 | -6/Factory | Core integrity fell below 20% 6771 | -6/Factory | Reached level 5 6790 | -6/Factory | Destroyed by H-61 Shepherd with Heavy Assault Cannon Last Messages --------------- 06764_ G-50 Soldier knocked back. 06771_ Reached level 5. 06771_ G-50 Soldier destroyed. 06771_ G-50 Soldier knocked back. 06774_ Overheating: Mak. Laser damaged (-22). 06776_ Power failure, Imp. Deuterium Engine shutdown. 06776_ Repair Station disabled. 06776_ Backup Plating III tumbles out of repair station. 06776_ Backup Power III tumbles out of repair station. 06778_ R-10 Processor collects Carbon-fiber Leg. 06778_ Knocked back. 06779_ Power failure, Meta Core shutdown. 06779_ Critical hit (Burn: +37). 06780_ Penetrated by Slug. 06781_ R-10 Processor collects Lgt. Angular Momentum Engine. 06783_ Knocked back. 06784_ R-10 Processor collects Hvy. Laser. 06785_ Penetrated by Slug. 06790_ Slug penetrates Wall. [Achievement: I Think I Know What's Going On] Map ----- +----------------------------------------------------+ | """"""""" ## ######## ## # #?????????????? | | ## # ###????????????? | | """"""""" ## # """ ! #????????????? | | ## # "T" ! % #????????????? | | ## / # ##????????????? | | " " % ## # ##?????????????? | | ""R"" ## # #?????????????? | | """"" ## #########+##+# # #?????????????? | | # #?????## #####?????????????? | | #########+## #??????# ##????????????????? | | T #??????# #?????????????????? | | "" #??????# #?????????????????? | | " """ #??????# ########????+#????? | | " """ #####! #??????# ## ! #???# #????? | | " """ #???# #??????# ## #???# #????? | | #???#########??????# ##[ #???# #????? | | #?????############## ## ##### #####? | | #?????# # #####+## #? | | #?????# # #???# ## ## | | ######?????# # #??## ## | | #??????????# # ##### ## | | #????####### """ + = % | | #????# # """"" # ^ % ## %% | | #????# # """"" # """ ## % | | ###### # # H "R" ## ## | | + """ @; !"" "u ## #? | | # """"" % # ^ % #########"### | | # """"" g u # | | # #% % R #= """"""""" | | ##########+#############;## ! # | | ???# T #???? ?" """ + """"""""" | | ???# """""" #??? """ # """ # | | ???# """""" #?? """ # ^""" # | | ???# """""" #? """?# """ %############# | | ?????"""""" # ?# #???????????? | | ?????? # ""?""??# #???????????? | | ??????""""" #????"???# ??????